Cogmind - Beta 13 @@@ ROGUE MODE // 2024.04.03 @ 19:52:28 Player: ScarletApple Result: Destroyed by G-47 Trooper with Particle Gun Performance ------------- Evolutions (2) 1000 Regions Visited (3) 600 Robots Destroyed (35) 175 Value Destroyed (1091) 1091 Prototype IDs (0) 0 Alien Tech Used (0) 0 Bonus (0) 0 TOTAL SCORE: 2866 Bonus ------- None Cogmind --------- Core Integrity 0/550 Matter 300/300 Energy 196/220 System Corruption 0% Temperature Cool (9) Movement Treading (160) Location -8/Materials Parts ------- > --- POWER (2) -------- Light Nuclear Core Light Nuclear Core > --- PROPULSION (3) --- Light Treads Improved Treads Flight Unit > --- UTILITY (4) ------ Heat Sink Improved Heat Sink Improved Heat Sink Large Storage Unit > --- WEAPON (2) ------- Light EM Pulse Cannon Light EM Pulse Cannon > --- INVENTORY (15) --- Ion Engine Improved Ion Engine Improved Heat Sink Improved Heat Sink Improved Heat Sink High-capacity Storage Unit Small Battery (100) Advanced Visual Processing Unit Target Analyzer Medium Armor Plating Improved Light Armor Plating Hardlight Generator Small Laser Peak State ------------ > --- POWER ------------ Light Nuclear Core Light Nuclear Core > --- PROPULSION ------- Light Treads Improved Treads Flight Unit > --- UTILITY ---------- Heat Sink Improved Heat Sink Improved Heat Sink Large Storage Unit > --- WEAPON ----------- Light EM Pulse Cannon Light EM Pulse Cannon > --- INVENTORY -------- Ion Engine Improved Ion Engine Improved Heat Sink Improved Heat Sink Improved Heat Sink High-capacity Storage Unit Small Battery Advanced Visual Processing Unit Medium Armor Plating Small Laser [Rating: 24] Favorites ----------- Power Improved Ion Engine Engine Improved Ion Engine Power Core Light Nuclear Core Propulsion Aluminum Leg Treads Advanced Treads Leg Aluminum Leg Wheel Compact Wheel Flight Unit Flight Unit Utility Large Storage Unit Device Improved Heat Sink Storage Large Storage Unit Protection Light Armor Plating Weapon Beam Cannon Energy Gun Small Laser Energy Cannon Beam Cannon Ballistic Gun Light Assault Rifle Build | -11 -10 -9 -8 ------- Run | Yrd Mat Mat Mat Slots Evolved 4 | . . 2 2 Power 1 | . . 1 . Propulsion 1 | . . . 1 Utility 2 | . . 1 1 Weapon . | . . . . Parts Attached 61 | 5 7 9 40 Power 11 | 1 . 3 7 Engine 7 | 1 . 2 4 Core 4 | . . 1 3 Reactor . | . . . . Propulsion 23 | 2 2 2 17 Treads 5 | . . . 5 Leg 10 | 2 2 2 4 Wheel 1 | . . . 1 Hover . | . . . . Flight 7 | . . . 7 Utility 16 | . 5 2 9 Device 9 | . 2 1 6 Storage 5 | . 3 1 1 Processor . | . . . . Hackware . | . . . . Protection 2 | . . . 2 Artifact . | . . . . Weapon 11 | 2 . 2 7 Energy Gun 1 | 1 . . . Energy Cannon 4 | . . 2 2 Ballistic Gun 6 | 1 . . 5 Ballistic Cannon . | . . . . Launcher . | . . . . Special Weapon . | . . . . Impact Weapon . | . . . . Slashing Weapon . | . . . . Piercing Weapon . | . . . . Special Melee Weapon . | . . . . Unidentified Prototypes . | . . . . Parts Lost 31 | . 1 4 26 Power 7 | . 1 . 6 Propulsion 12 | . . 2 10 Utility 4 | . . . 4 Weapon 8 | . . 2 6 Highest Loss Streak 5 | . 1 4 5 To Critical Strikes 1 | . . 1 . Average Slot Usage (%) 82 | . 87 87 77 Engine 10 | . 11 9 10 Core 5 | . . 8 4 Treads 4 | . . . 8 Leg 13 | . 28 19 5 Flight 4 | . . . 8 Device 13 | . 3 17 13 Storage 10 | . 14 11 9 Protection 1 | . . . 2 Energy Gun 2 | . 14 1 . Energy Cannon 9 | . . 18 6 Ballistic Gun 6 | . 14 1 7 Naked Turns . | . . . . Heaviest Build 79 | 5 26 59 79 Greatest Support 43 | 20 26 26 43 Greatest Overweight (x) 11 | . 1 3 11 Average Overweight (x) . | . . 1 . Largest Inventory Capacity 20 | 5 15 20 20 Average Capacity 15 | 5 14 16 15 Most Carried 17 | 4 11 17 17 Average Carried 11 | 1 8 13 11 Final Capacity 20 | 5 15 20 15 Final Carried 17 | 4 11 17 13 Class Distribution -------------------- 71% | Scavenger-Mutant 28% | Mutant Dominant Class ---------------- Mutant | -10/Materials Scavenger-Mutant | -9/Materials Scavenger-Mutant | -8/Materials Resources | -11 -10 -9 -8 ----------- Run | Yrd Mat Mat Mat Matter Collected 851 | 252 58 109 432 Remotely . | . . . . Salvage Created 1226 | 42 132 368 684 Parts 76 | 1 7 23 45 Haulers Intercepted . | . . . . Recyclers Shooed . | . . . . Parts Field Recycled . | . . . . Retrieved Matter . | . . . . Parts Self-Destructed . | . . . . Prevented . | . . . . Kills | -11 -10 -9 -8 ------- Run | Yrd Mat Mat Mat Combat Hostiles Destroyed 34 | 1 4 10 19 Guns 19 | 1 4 4 10 Cannons 12 | . . 6 6 AOE 1 | . . . 1 Classes Destroyed 5 | 1 1 1 2 Watcher 1 | . . . 1 Swarmer 13 | . 1 4 8 Grunt 13 | 1 3 3 6 Sentry 7 | . . 3 4 Hunter 1 | . . . 1 Best Kill Streak 4 | 1 3 2 4 Combat Bots Only 4 | 1 3 2 4 Max Kills in Single Turn 2 | 1 1 2 2 Gunslinging 1 | . . 1 . Exploded 1 | . . . 1 Melee . | . . . . Uniques/NPCs Destroyed . | . . . . Combat | -11 -10 -9 -8 -------- Run | Yrd Mat Mat Mat Hostile Shots Fired 378 | 3 51 94 230 Missed 95 | . 19 23 53 Damage Taken 3641 | 34 349 764 2494 Core 916 | 11 63 279 563 Absorbed by Shields . | . . . . Core Remaining (%) 65 | 95 70 30 . Volleys Fired 177 | 2 20 25 130 Largest 2 | 2 2 2 2 Hottest 120 | 60 60 120 120 Shots Fired 266 | 4 39 42 181 Gun 199 | 4 39 19 137 Cannon 67 | . . 23 44 Launcher . | . . . . Special . | . . . . Kinetic 171 | 2 20 12 137 Thermal 81 | 2 19 30 30 Explosive . | . . . . Electromagnetic 14 | . . . 14 Robot Hit Streak 21 | 2 7 20 21 Robot Miss Streak 4 | 1 3 2 4 Penetration Max . | . . . . Secondary Targets 1 | . . 1 . Max Gunslinging Chain 1 | . . 1 . Shots Hit Robots 191 | 3 23 36 129 Core Hits 71 | 2 9 17 43 Critical Kills 1 | . . . 1 Critical Parts Destroyed 1 | . . . 1 Critical Strikes 2 | . . . 2 Destroy 2 | . . . 2 Melee Attacks . | . . . . Impact . | . . . . Slashing . | . . . . Piercing . | . . . . Sneak Attacks . | . . . . Combat Hostiles . | . . . . Follow-up Attacks . | . . . . Damage Inflicted 2464 | 29 224 532 1679 Guns 1218 | 29 224 164 801 Cannons 1104 | . . 368 736 Explosions 142 | . . . 142 Melee . | . . . . Ramming . | . . . . Kinetic 1005 | 7 100 97 801 Thermal 983 | 22 124 435 402 Explosive 142 | . . . 142 Electromagnetic 334 | . . . 334 Impact . | . . . . Slashing . | . . . . Piercing . | . . . . Highest Corruption . | . . . . Average Corruption . | . . . . Corruption Purged . | . . . . Corruption Blocked . | . . . . Overload Shots . | . . . . Overflow Damage 121 | . . . 121 Projectiles . | . . . . Explosions 121 | . . . 121 Melee . | . . . . Knockbacks . | . . . . Impact . | . . . . Kinetic . | . . . . Secondary . | . . . . Self-Inflicted Damage 196 | . . . 196 Shots 2 | . . . 2 Rammed . | . . . . Targets Rammed . | . . . . Kicked . | . . . . Crushed . | . . . . Highest Temperature 384 | 52 100 198 384 Average Temperature 57 | 30 34 60 67 Received Heat Transfer 1347 | 18 141 189 999 Siege Activations . | . . . . Robots Corrupted 1 | . . . 1 Combat Hostiles 1 | . . . 1 Parts Fried 1 | . . . 1 Impact Corruptions . | . . . . Robots Melted 1 | . . . 1 Combat Hostiles 1 | . . . 1 Parts Melted 6 | . 1 2 3 Heat Transferred 2103 | 50 275 927 851 Parts Sabotaged . | . . . . Parts Stolen . | . . . . Parts Stripped . | . . . . Power Chain Reactions . | . . . . Alert | -11 -10 -9 -8 ------- Run | Yrd Mat Mat Mat Peak Influence 225 | 20 178 100 225 Initial 27 | . 13 . 27 Average 56 | 2 83 54 55 Maximum Alert Level 1 | . . . 1 Low Security (%) 98 | 100 100 100 97 Level 1 1 | . . . 2 Level 2 . | . . . . Level 3 . | . . . . Level 4 . | . . . . Level 5 . | . . . . High Security . | . . . . Max Security . | . . . . Squads Dispatched 5 | . 2 1 2 Investigation 1 | . . . 1 Extermination . | . . . . Reinforcement 4 | . 2 1 1 Assault . | . . . . Garrison . | . . . . Intercept . | . . . . Searches Triggered . | . . . . Construction Impeded . | . . . . Haulers Reinforced . | . . . . Active Scanning Responses . | . . . . Cargo Convoy Interrupts . | . . . . Stealth | -11 -10 -9 -8 --------- Run | Yrd Mat Mat Mat Distress Signals 4 | . 1 . 3 Communications Jammed . | . . . . Distress Signals . | . . . . Times Spotted 63 | 1 14 11 37 Peak Tracking Total 7 | 1 7 6 4 Tactical Retreats 4 | . 2 . 2 Traps | -11 -10 -9 -8 ------- Run | Yrd Mat Mat Mat Traps Triggered . | . . . . Indirectly . | . . . . Trap Hack Attempts . | . . . . Triggered . | . . . . Disarmed . | . . . . Reprogrammed . | . . . . Reused . | . . . . Traps Extracted . | . . . . Installed . | . . . . Triggered . | . . . . Machines | -11 -10 -9 -8 ---------- Run | Yrd Mat Mat Mat Machines Disabled 2 | . . . 2 Max in Single Turn 2 | . . . 2 Machines Repaired . | . . . . Machines Dismantled . | . . . . Machines Sabotaged . | . . . . Overloaded Fab Kills . | . . . . Hacking | -11 -10 -9 -8 --------- Run | Yrd Mat Mat Mat Machines Accessed 2 | . . 1 1 Terminals 1 | . . 1 . Fabricators . | . . . . Repair Stations . | . . . . Recycling Units 1 | . . . 1 Scanalyzers . | . . . . Garrison Access . | . . . . Total Hacks 4 | . . 1 3 Successful 3 | . . 1 2 Failed 1 | . . . 1 Catastrophic . | . . . . Database Lockouts . | . . . . Manual . | . . . . Terminals 1 | . . 1 . Fabricators . | . . . . Repair Stations . | . . . . Recycling Units 3 | . . . 3 Scanalyzers . | . . . . Garrison Access . | . . . . Terminal Hacks 1 | . . 1 . Zone Layout 1 | . . 1 . Fabricator Hacks . | . . . . Repair Station Hacks . | . . . . Recycling Unit Hacks 2 | . . . 2 Recycle Component 1 | . . . 1 Process 1 | . . . 1 Scanalyzer . | . . . . Garrison Access Hacks . | . . . . Unauthorized Hacks . | . . . . Terminals . | . . . . Fabricators . | . . . . Repair Stations . | . . . . Recycling Units . | . . . . Scanalyzers . | . . . . Garrison Access . | . . . . Data Cores Recovered . | . . . . Used . | . . . . Hacking Detections 1 | . . . 1 Full Trace Events 1 | . . . 1 Feedback Events . | . . . . Feedback Blocked . | . . . . Robot Schematics Acquired . | . . . . Robots Built . | . . . . Authchips . | . . . . Time . | . . . . Total Robot Build Rating . | . . . . Part Schematics Acquired . | . . . . Parts Built . | . . . . Authchips . | . . . . Time . | . . . . Total Part Build Rating . | . . . . Parts Repaired . | . . . . Time . | . . . . Parts Recycled 1 | . . . 1 Recycled Matter 134 | . . . 134 Retrieved Matter . | . . . . Retrieved Components . | . . . . Parts Scanalyzed . | . . . . Part Schematics Acquired . | . . . . Parts Damaged . | . . . . Bothacking | -11 -10 -9 -8 ------------ Run | Yrd Mat Mat Mat Used RIF Installer . | . . . . Robots Hacked . | . . . . Non-combat . | . . . . Combat . | . . . . Robot Hacks Applied . | . . . . Relay Couplers Released . | . . . . Fabnet Peak Effective % . | . . . . Robots Rewired . | . . . . Allies Hacked . | . . . . Hacks Repelled . | . . . . Allies | -11 -10 -9 -8 -------- Run | Yrd Mat Mat Mat Total Allies . | . . . . Largest Group . | . . . . Highest-Rated Group . | . . . . Highest-Rated Ally . | . . . . Total Orders . | . . . . Ally Attacks . | . . . . Total Damage . | . . . . Kills . | . . . . Allies Corrupted . | . . . . Allies Melted . | . . . . Intel | -11 -10 -9 -8 ------- Run | Yrd Mat Mat Mat Robot Analysis Total . | . . . . Derelict Logs Recovered . | . . . . Drone Launches . | . . . . Drone Recoveries . | . . . . Exploration | -11 -10 -9 -8 ------------- Run | Yrd Mat Mat Mat Turns Passed 3269 | 139 436 1096 1598 Spaces Moved 1330 | 108 205 423 594 Core 36 | 19 . 12 5 Treads 417 | . . . 417 Legs 862 | 89 205 411 157 Wheels . | . . . . Hover . | . . . . Flight 15 | . . . 15 Fastest Speed 50 | 50 120 120 160 Average Speed 190 | 107 165 208 202 Slowest Speed 620 | 120 190 260 620 Overloaded Moves . | . . . . Propulsion Burnouts . | . . . . Robots Hopped . | . . . . Cave-ins Triggered . | . . . . Exploration Rate (%) 26 | 6 33 29 36 Regions Visited 3 Branch Regions . Pre-discovered Areas . | . . . . Known Exits Taken . | . . . . Unknown Exits Taken 3 | 1 1 1 . Scrap Searched . | . . . . Spaces Dug . | . . . . Terrain Destroyed 28 | . . . 28 Melee . | . . . . Projectile . | . . . . AOE 28 | . . . 28 Terrain Rammed . | . . . . Walls Destroyed . | . . . . Machines Disabled . | . . . . Actions | -11 -10 -9 -8 --------- Run | Yrd Mat Mat Mat Total 1819 | 124 265 600 830 Wait 211 | 6 29 131 45 Move 1327 | 107 204 422 594 Hop . | . . . . Pick Up 30 | 4 2 10 14 Fast Attach 25 | 5 5 4 11 Attach 23 | . . 3 20 Detach 6 | . 3 . 3 Swap 13 | . 2 2 9 Drop 7 | . . 3 4 Fire 177 | 2 20 25 130 Melee . | . . . . Ram . | . . . . Kick . | . . . . Crush . | . . . . Escape Stasis . | . . . . Rewire . | . . . . Trap . | . . . . Miscellaneous . | . . . . Route ------- -11/Scrapyard -10/Materials -9/Materials (discovered 2 exits: *Mat / [Min]) -8/Materials History --------- Turn | Location | Event 2 | -11/Scrapyard | Met Revision 17 106 | -11/Scrapyard | Discovered new exit (range 8) 140 | -11/Scrapyard | Entered Materials 309 | -10/Materials | Build established: Mutant 539 | -10/Materials | Discovered new exit (range 15) 576 | -10/Materials | Entered another Materials area 576 | -9/Materials | Evolved 2 slots: Power x1, Utility x1 726 | -9/Materials | Core integrity fell below 50% 733 | -9/Materials | Lost 4 parts (2n2w) 872 | -9/Materials | Discovered new exit (range 11) 1052 | -9/Materials | Build established: Scavenger-Mutant 1600 | -9/Materials | Discovered new exit (range 6) 1672 | -9/Materials | Entered another Materials area 1672 | -8/Materials | Evolved 2 slots: Propulsion x1, Utility x1 1913 | -8/Materials | Lost 5 parts (1p3n1w) 2055 | -8/Materials | Lost 4 parts (1p2n1w) 2324 | -8/Materials | Core integrity fell below 50% 2496 | -8/Materials | Lost 3 parts (1p1n1w) 2685 | -8/Materials | Lost 3 parts (1p1n1u) 2739 | -8/Materials | Core integrity fell below 20% 2775 | -8/Materials | Lost 4 parts (2p1n1w) 3003 | -8/Materials | Lost 3 parts (1n2w) 3270 | -8/Materials | Destroyed by G-47 Trooper with Particle Gun Last Messages --------------- 02980_ Acquired 50 matter. 02995_ K-01 Serf cleans the Matter Pump. 03006_ Destroyed Lgt. Deuterium Engine. 03006_ Imp. Sensor Array fried. 03006_ W-25 Informer destroyed. 03011_ Acquired 24 matter. 03028_ Acquired Target Analyzer. 03073_ Acquired Hardlight Generator. 03086_ Acquired Imp. Light Armor Plating. 03138_ K-01 Serf collects debris. 03177_ G-47 Trooper misfires. 03178_ G-47 Trooper system terminally corrupted. [Achievement: Power Corrupts] 03184_ K-01 Serf collects debris. 03189_ ALERT: Hostiles spotted, dispatching reinforcements to Terminal M004. 03190_ K-01 Serf collects debris. 03196_ Acquired 16 matter. 03253_ W-25 Informer sends out distress signal. 03253_ Critical hit (Burn: +37). Map ----- +----------------------------------------------------+ | ?????????????????????????????????????????????????? | | #######??????????????????????????????????????????? | | #??????????????????????????????????????????? | | ! #??????????????????????????????????????????? | | #??????????????????????????????????????????? | | #???#####??????????????????????????????????? | | ##### #??????????????????????????????????? | | + #??????????????????????????????????? | | ########### #??????????????????????????????????? | | # ### ##??????????????????????????????????? | | # """ #?# #???????????????????????????????????? | | # """"" ### #???????????????????????????????????? | | + """"" + ########????????????????????????????? | | # """"" ### ## #????????????????????????????? | | # """ #?# ## #????????????????????????????? | | # #?# # #????????????????????????????? | | # #?# + #????????????????????????????? | | # #?# # #????????????????????????????? | | ############ # #????????????????????????????? | | # #????????????????????????????? | | # #????????????????????????????? | | "" """ """ + ########### ????????????????? | | ?"? """ """ # # # +?????????????? | | "" """ """ # # # #?????????????? | | + # g # #?????????????? | | ######## @gg # ##????????????? | | "" """ """ #??????######/### #????????????? | | ????""" """ #????????# #????????????? | | "" """ """ ########## [ #????????????? | | ==== #????????????? | | =%=== #????????????? | | ############### *== #????????????? | | ######+##?????# # ! #????????????? | | ??????????????#[ # ########+????? | | ??????????????# # ???? | | ??????????????# """ + ???? | | ??????????????# """"" # ???? | | ??????????????# """"" ####### #########?????????? | | ??????????????# """"" #?????# #?????????????????? | | ??????????????# """ #?????# #?????????????????? | | ??????????????# #?????# #?????????????????? | | ??????????????##########?????# #?????????????????? | | ?????????????????????????????# #?????????????????? | | ????????????????????????????## ##????????????????? | | ????????????????????????????# #????????????????? | | ????????????????????????????# [#????????????????? | | ????????????????????????????# #????????????????? | | ????????????????????????????## ##????????????????? | | ?????????????????????????????# #?????????????????? | | ?????????????????????????????# #?????????????????? | +----------------------------------------------------+ Best States ------------- Heat Dissipation 69 Energy Generation 23 Energy Capacity 430 Matter Stores 300 Matter Capacity 300 Sight Range 16 Terrain Scan Density 10 Additional Mass Support 6 Armor Coverage 150 Evasion (%) 55 Recoil Reduction 2 Item Schematics ----------------- None Robot Schematics ------------------ None Fabricated ------------ Nothing Alien Tech Used ----------------- None Achievements -------------- It's Just You One Hack Too Far Power Corrupts Challenges ------------ None Game ------ Seed ComponentShrapnelProjector Manual? 0 Play Time 00:34:42 Cumulative 1.7 hours Start 2024.04.03 @ 19:19:47 End 2024.04.03 @ 19:52:28 Sessions 1 Manual Loads 0 Difficulty Rogue Special Mode None Game No. 2 Rogue 2 Adventurer 0 Explorer 0 Win Type - Total 0 Types 0/0/0/0/0/0/0/0/0 Lore% 0 Gallery% 3 Achievement% 2 Wizard Run 0 Options --------- Layout 1 ASCII 0 Keyboard 0 Movement Arrows Keybinds 0 Fullscreen 2 Font 32/SmallcapsGlow Map View 77x35 Zoom Use 0% Tactical HUD 1 Map Filters NONE Filters NONE Steam 1 RUN: 61aa572a-481c-45c2-855a-0b601691d8bf